fUST/lending_fUST_20250817
["ID","MTS","AMOUNT","RATE_DAILY","PERIOD"]
[379764101,1755402639731,-480.0,0.00020356,2]
[379764103,1755402639740,-489.38,0.00020356,2]
[379764105,1755402639749,-480.0,0.00020356,2]
[379764107,1755402639759,-498.87803107,0.00020356,2]
[379764109,1755402639768,-480.0,0.00020356,2]
[379764111,1755402639777,-480.0,0.00020356,2]
[379764113,1755402639786,-480.0,0.00020356,2]
[379764115,1755402639795,-480.0,0.00020356,2]
[379764117,1755402639805,-480.0,0.00020356,2]
[379764119,1755402639815,-480.0,0.00020356,2]
[379764121,1755402639824,-488.59770756,0.00020356,2]
[379764123,1755402639833,-480.0,0.00020356,2]
[379764125,1755402639843,-480.0,0.00020356,2]
[379764127,1755402639852,-480.0,0.00020356,2]
[379764129,1755402639861,-480.0,0.00020356,2]
[379764131,1755402639870,-166.79607639,0.00020356,2]
[379764133,1755402639879,-480.0,0.00020356,2]
[379764135,1755402639889,-480.0,0.00020356,2]
[379764137,1755402639898,-491.80522803,0.00020356,2]
[379764139,1755402639908,-480.0,0.00020356,2]
[379764142,1755402639918,-480.0,0.00020356,2]
[379764143,1755402639928,-480.0,0.00020356,2]
[379764144,1755402639937,-480.0,0.00020356,2]
[379764145,1755402639946,-650.03,0.00020356,2]
[379764146,1755402639955,-480.0,0.00020356,2]
[379764147,1755402639964,-485.66265952,0.00020356,2]
[379764148,1755402639973,-483.16274101,0.00020356,2]
[379764149,1755402639983,-794.77,0.00020356,2]
[379764150,1755402639992,-481.74606624,0.00020357,2]
[379764151,1755402640001,-480.0,0.00020357,2]
[379764152,1755402640011,-481.93024104,0.00020357,2]
[379764153,1755402640019,-484.65978354,0.00020357,2]
[379764154,1755402640028,-480.0,0.00020357,2]
[379764155,1755402640037,-481.99978626,0.00020357,2]
[379764156,1755402640047,-480.0,0.00020357,2]
[379764157,1755402640055,-480.0,0.00020357,2]
[379764158,1755402640065,-480.0,0.00020357,2]
[379764159,1755402640081,-485.06456787,0.00020357,2]
[379764160,1755402640090,-517.28084671,0.00020357,2]
[379764161,1755402640099,-482.2662892,0.00020357,2]
[379764162,1755402640108,-480.0,0.00020357,2]
[379764163,1755402640117,-483.36065042,0.00020357,2]
[379764164,1755402640126,-591.63888149,0.00020357,2]
[379764165,1755402640135,-482.42400984,0.00020357,2]
[379764166,1755402640145,-482.41794371,0.00020357,2]
[379764167,1755402640153,-480.0,0.00020357,2]
[379764168,1755402640163,-483.6704916,0.00020357,2]
[379764169,1755402640171,-483.58238671,0.00020357,2]
[379764170,1755402640181,-484.34009044,0.00020357,2]
[379764171,1755402640190,-503.22450853,0.00020357,2]
[379764172,1755402640199,-480.0,0.00020357,2]
[379764173,1755402640208,-481.97133082,0.00020357,2]
[379764174,1755402640217,-480.0,0.00020357,2]
[379764175,1755402640226,-480.0,0.00020357,2]
[379764176,1755402640235,-481.32312707,0.00020357,2]
[379764178,1755402640254,-480.0,0.00020357,2]
[379764179,1755402640264,-480.0,0.00020357,2]
[379764181,1755402640273,-421.17699073,0.00020357,2]
[379764183,1755402640283,-481.71743281,0.00020357,2]
[379764185,1755402640292,-484.6371238,0.00020357,2]
[379764187,1755402640302,-482.53671534,0.00020357,2]
[379764189,1755402640311,-481.98468523,0.00020357,2]
[379764191,1755402640320,-482.93371222,0.00020357,2]
[379764193,1755402640329,-464.05715263,0.00020357,2]
[379764195,1755402640339,-485.92064306,0.00020357,2]
[379764197,1755402640349,-482.78607282,0.00020357,2]
[379764199,1755402640360,-480.0,0.00020357,2]
[379764201,1755402640369,-480.0,0.00020357,2]
[379764203,1755402640379,-480.0,0.00020357,2]
[379764204,1755402640388,-480.0,0.00020357,2]
[379764205,1755402640399,-480.0,0.00020357,2]
[379764206,1755402640408,-474.45027526,0.00020358,2]
[379764207,1755402640417,-239.15414505,0.00020364,2]
[379764208,1755402640432,-151.0,0.00020368,2]
[379764209,1755402640442,-151.0,0.00020368,2]
[379764210,1755402640451,-151.0,0.00020368,2]
[379764211,1755402640460,-151.0,0.00020368,2]
[379764212,1755402640469,-151.0,0.00020368,2]
[379764213,1755402640479,-500.0,0.00020368,2]
[379764214,1755402640487,-151.0,0.00020368,2]
[379764215,1755402640497,-151.0,0.00020368,2]
[379764216,1755402640506,-151.0,0.00020368,2]
[379764217,1755402640515,-500.0,0.00020368,2]
[379764218,1755402640525,-151.0,0.00020368,2]
[379764219,1755402640535,-151.0,0.00020368,2]
[379764220,1755402640544,-156.57910944,0.00020368,2]
[379764221,1755402640553,-500.0,0.00020368,2]
[379764222,1755402640563,-151.0,0.00020368,2]
[379764223,1755402640572,-151.0,0.00020368,2]
[379764224,1755402640581,-500.0,0.00020368,2]
[379764225,1755402640591,-151.0,0.00020368,2]
[379764226,1755402640600,-151.0,0.00020368,2]
[379764227,1755402640610,-500.0,0.00020368,2]
[379764228,1755402640619,-151.0,0.00020368,2]
[379764229,1755402640629,-151.0,0.00020368,2]
[379764230,1755402640638,-151.0,0.00020368,2]
[379764231,1755402640648,-151.0,0.00020368,2]
[379764232,1755402640657,-500.0,0.00020368,2]
[379764233,1755402640667,-151.0,0.00020368,2]
[379764234,1755402640676,-151.0,0.00020368,2]
[379764235,1755402640685,-151.0,0.00020368,2]
[379764236,1755402640695,-151.0,0.00020368,2]
[379764237,1755402640705,-500.0,0.00020368,2]
[379764238,1755402640714,-151.0,0.00020368,2]
[379764239,1755402640724,-158.42217796,0.00020368,2]
[379764240,1755402640735,-151.0,0.00020368,2]
[379764241,1755402640745,-151.0,0.00020368,2]
[379764242,1755402640755,-151.0,0.00020368,2]
[379764243,1755402640765,-500.0,0.00020368,2]
[379764244,1755402640775,-151.0,0.00020368,2]
[379764245,1755402640784,-151.0,0.00020368,2]
[379764246,1755402640793,-151.0,0.00020368,2]
[379764247,1755402640803,-500.0,0.00020368,2]
[379764248,1755402640812,-151.0,0.00020368,2]
[379764249,1755402640821,-151.0,0.00020368,2]
[379764250,1755402640971,-151.0,0.00020368,2]
[379764251,1755402640980,-500.0,0.00020368,2]
[379764252,1755402640990,-17842.522448,0.00020368,2]
[379764253,1755402641001,-151.0,0.00020368,2]
[379764254,1755402641011,-151.0,0.00020368,2]
[379764255,1755402641020,-151.0,0.00020368,2]
[379764256,1755402641030,-500.0,0.00020368,2]
[379764257,1755402641039,-151.0,0.00020368,2]
[379764258,1755402641048,-151.0,0.00020368,2]
[379764259,1755402641057,-151.0,0.00020368,2]
[379764260,1755402641067,-500.0,0.00020368,2]
[379764261,1755402641076,-151.9529677,0.00020368,2]
[379764262,1755402641086,-151.0,0.00020368,2]
[379764263,1755402641096,-151.0,0.00020368,2]
[379764264,1755402641106,-500.0,0.00020368,2]
[379764265,1755402641115,-151.0,0.00020368,2]
[379764266,1755402641124,-151.0,0.00020368,2]
[379764267,1755402641134,-151.0,0.00020368,2]
[379764268,1755402641143,-500.0,0.00020368,2]
[379764269,1755402641153,-151.0,0.00020368,2]
[379764270,1755402641163,-151.0,0.00020368,2]
[379764271,1755402641173,-500.0,0.00020368,2]
[379764272,1755402641182,-151.0,0.00020368,2]
[379764273,1755402641192,-237.28236603,0.00020368,2]
[379764274,1755402641201,-500.0,0.00020368,2]
[379764275,1755402641210,-560.44357738,0.00020368,2]
[379764276,1755402641219,-772.27116181,0.00020368,2]
[379764277,1755402641229,-151.8438654,0.00020368,2]
[379764278,1755402641240,-151.0,0.00020368,2]
[379764279,1755402641265,-151.0,0.00020368,2]
[379764280,1755402641292,-151.0,0.00020368,2]
[379764281,1755402641311,-151.0,0.00020368,2]
[379764282,1755402641321,-151.0,0.00020368,2]
[379764283,1755402641331,-151.0,0.00020368,2]
[379764284,1755402641340,-154.85268147,0.00020368,2]
[379764285,1755402641352,-161.0584732,0.00020379,2]
[379764286,1755402641362,-201.15189442,0.00020379,2]
[379764287,1755402641371,-370000.0,0.0002038,2]
[379764288,1755402641381,-239.15414505,0.000204,2]
[379764289,1755402641391,-322.0,0.00020419,2]
[379764290,1755402641401,-151.89730745,0.0002046,2]
[379764291,1755402641410,-151.0,0.0002046,2]
[379764292,1755402641419,-151.0,0.0002046,2]
[379764293,1755402641431,-500.0,0.0002046,2]
[379764294,1755402641440,-151.64535672,0.0002046,2]
[379764295,1755402641450,-151.0,0.0002046,2]
[379764296,1755402641459,-151.0,0.0002046,2]
[379764297,1755402641469,-151.65313807,0.0002046,2]
[379764298,1755402641478,-151.76723823,0.0002046,2]
[379764299,1755402641488,-151.0,0.0002046,2]
[379764300,1755402641497,-152.69671986,0.0002046,2]
[379764301,1755402641507,-151.0,0.0002046,2]
[379764302,1755402641516,-152.57892156,0.0002046,2]
[379764303,1755402641525,-212.47413021,0.0002046,2]
[379764304,1755402641535,-151.0,0.0002046,2]
[379764305,1755402641545,-151.0,0.0002046,2]
[379764306,1755402641556,-151.0,0.0002046,2]
[379764307,1755402641565,-1203.0,0.0002046,2]
[379764308,1755402641575,-500.0,0.0002046,2]
[379764309,1755402641584,-151.0,0.0002046,2]
[379764310,1755402641594,-201.65566068,0.0002046,2]
[379764311,1755402641603,-151.0,0.0002046,2]
[379764312,1755402641613,-151.75693074,0.0002046,2]
[379764313,1755402641622,-189.19364358,0.0002046,2]
[379764314,1755402641632,-151.0,0.0002046,2]
[379764315,1755402641644,-199.09219522,0.0002046,2]
[379764316,1755402641653,-151.2569465,0.0002046,2]
[379764317,1755402641664,-151.0,0.0002046,2]
[379764318,1755402641673,-151.33980772,0.0002046,2]
[379764319,1755402641683,-168.0,0.00020461,2]
[379764320,1755402641692,-551.0,0.00020466,2]
[379764321,1755402641702,-428.16216798,0.00020473,2]
[379764322,1755402641712,-500.0,0.00020473,2]
[379764323,1755402641721,-502.13602325,0.00020473,2]
[379764324,1755402641731,-501.25711225,0.00020473,2]
[379764325,1755402641740,-500.0,0.00020473,2]
[379764326,1755402641750,-501.66972533,0.00020473,2]
[379764327,1755402641759,-505.70518919,0.00020473,2]
[379764328,1755402641769,-500.0,0.00020473,2]
[379764329,1755402641779,-500.0,0.00020473,2]
[379764330,1755402641788,-500.0,0.00020473,2]
[379764331,1755402641797,-500.0,0.00020473,2]
[379764332,1755402641806,-500.0,0.00020473,2]
[379764333,1755402641816,-500.0,0.00020473,2]
[379764334,1755402641826,-503.14218128,0.00020473,2]
[379764335,1755402641835,-500.0,0.00020473,2]
[379764336,1755402641844,-500.0,0.00020473,2]
[379764337,1755402641853,-500.0,0.00020473,2]
[379764338,1755402641863,-500.0,0.00020473,2]
[379764339,1755402641873,-501.23763847,0.00020473,2]
[379764340,1755402641883,-500.0,0.00020473,2]
[379764341,1755402641892,-500.64506414,0.00020473,2]
[379764342,1755402641902,-500.80032938,0.00020473,2]
[379764343,1755402641911,-500.0,0.00020473,2]
[379764344,1755402641921,-500.71946824,0.00020473,2]
[379764345,1755402641930,-501.67988707,0.00020473,2]
[379764346,1755402641940,-500.0,0.00020473,2]
[379764347,1755402641949,-500.0,0.00020473,2]
[379764348,1755402641959,-500.0,0.00020473,2]
[379764349,1755402641968,-500.0,0.00020473,2]
[379764350,1755402641978,-517.02090165,0.00020473,2]
[379764351,1755402641988,-158.2102775,0.00020473,2]
[379764352,1755402641997,-500.0,0.00020473,2]
[379764353,1755402642007,-501.2936446,0.00020473,2]
[379764354,1755402642016,-500.88053432,0.00020473,2]
[379764355,1755402642026,-500.0,0.00020473,2]
[379764356,1755402642035,-500.0,0.00020473,2]
[379764357,1755402642044,-168.0,0.00020484,2]
[379764358,1755402642054,-1000.0,0.00020499,2]
[379764359,1755402642063,-1000.0,0.00020499,2]
[379764360,1755402642072,-1000.0,0.00020499,2]
[379764361,1755402642082,-1000.0,0.00020499,2]
[379764362,1755402642091,-1000.0,0.00020499,2]
[379764363,1755402642101,-1000.0,0.00020499,2]
[379764364,1755402642110,-1000.0,0.00020499,2]
[379764365,1755402642119,-1000.0,0.00020499,2]
[379764366,1755402642129,-1000.0,0.00020499,2]
[379764367,1755402642139,-874.9740542,0.00020499,2]
[379764368,1755402642149,-363125.98064295,0.000205,2]
[379764369,1755402642165,-17909.06217903,0.000205,2]
[379764370,1755402642176,-108719.52717802,0.000205,2]
[379764371,1755402642186,-151.0,0.000205,3]
[379764372,1755402642195,-151.0,0.000205,3]
[379764373,1755402642204,-151.0,0.000205,3]
[379764374,1755402642214,-151.0,0.000205,3]
[379764375,1755402642223,-293.7439445,0.000205,2]
[379764376,1755402642232,-160.7608968,0.000205,2]
[379764377,1755402642242,-216.867842,0.000205,2]
[379764378,1755402642252,-160.7608968,0.000205,2]
[379764379,1755402642261,-321.5217936,0.000205,2]
[379764380,1755402642271,-160.7608968,0.000205,2]
[379764381,1755402642280,-160.7608968,0.000205,2]
[379764382,1755402642290,-151.0,0.000205,3]
[379764383,1755402642299,-160.7608968,0.000205,2]
[379764384,1755402642309,-160.7608968,0.000205,2]
[379764385,1755402642320,-160.0345557,0.000205,2]
[379764386,1755402642329,-151.0,0.000205,2]
[379764387,1755402642339,-423.523275,0.000205,2]
[379764388,1755402642351,-423.523275,0.000205,2]
[379764389,1755402642361,-151.0,0.000205,2]
[379764390,1755402642370,-151.0,0.000205,2]
[379764391,1755402642380,-151.0,0.000205,2]
[379764392,1755402642391,-151.0,0.000205,2]
[379764393,1755402642400,-151.0,0.000205,2]
[379764394,1755402642410,-151.0,0.000205,2]
[379764395,1755402642419,-151.0,0.000205,2]
[379764396,1755402642431,-151.274819,0.000205,2]
[379764397,1755402642440,-151.0,0.000205,2]
[379764398,1755402642451,-151.0,0.000205,2]
[379764399,1755402642460,-151.0,0.000205,4]
[379764401,1755402642471,-300.912384,0.000205,2]
[379764403,1755402642480,-151.0,0.000205,2]
[379764404,1755402642490,-151.0,0.000205,2]
[379764405,1755402642499,-225.499689,0.000205,2]
[379764406,1755402642508,-225.499689,0.000205,2]
[379764407,1755402642518,-587.487889,0.000205,2]
[379764408,1755402642527,-151.0,0.000205,2]
[379764409,1755402642537,-151.0,0.000205,2]
[379764410,1755402642547,-165.518148,0.00020548,2]
[379764411,1755402642556,-308.45,0.00020563,2]
[379764412,1755402642566,-485.29235177,0.00020564,2]
[379764414,1755402642575,-485.42441623,0.00020564,2]
[379764415,1755402642584,-480.0,0.00020564,2]
[379764416,1755402642593,-480.0,0.00020564,2]
[379764418,1755402642602,-1394.51,0.00020564,2]
[379764419,1755402642612,-480.0,0.00020564,2]
[379764420,1755402642622,-480.0,0.00020564,2]
[379764421,1755402642632,-577.57,0.00020564,2]
[379764422,1755402642642,-480.0,0.00020564,2]
[379764424,1755402642651,-480.0,0.00020564,2]
[379764425,1755402642661,-757.64,0.00020564,2]
[379764426,1755402642671,-583.64,0.00020564,2]
[379764427,1755402642681,-522.63,0.00020564,2]
[379764428,1755402642691,-764.0,0.00020564,2]
[379764429,1755402642700,-480.0,0.00020564,2]
[379764430,1755402642709,-300.02,0.00020564,2]
[379764431,1755402642718,-480.0,0.00020564,2]
[379764432,1755402642728,-496.50340355,0.00020564,2]
[379764433,1755402642738,-810.97,0.00020564,2]
[379764434,1755402642748,-480.0,0.00020564,2]
[379764435,1755402642758,-480.0,0.00020564,2]
[379764436,1755402642768,-524.02312099,0.00020565,2]
[379764437,1755402642777,-487.74,0.00020565,2]
[379764438,1755402642787,-480.0,0.00020565,2]
[379764440,1755402642796,-480.0,0.00020565,2]
[379764442,1755402642805,-2025.64,0.00020565,2]
[379764444,1755402642815,-480.0,0.00020565,2]
[379764446,1755402642824,-480.0,0.00020565,2]
[379764448,1755402642833,-480.0,0.00020565,2]
[379764450,1755402642842,-523.11,0.00020565,2]
[379764452,1755402642851,-480.0,0.00020565,2]
[379764454,1755402642860,-480.0,0.00020565,2]
[379764456,1755402642870,-351.0,0.0002058,2]
[379764458,1755402642879,-151.0,0.000206,3]
[379764460,1755402642889,-160.7608968,0.000206,2]
[379764462,1755402642898,-589.395901,0.000206,2]
[379764464,1755402642908,-293.7439445,0.000206,2]
[379764466,1755402642917,-160.7608968,0.000206,2]
[379764468,1755402642927,-293.7439445,0.000206,2]
[379764470,1755402642936,-160.7608968,0.000206,2]
[379764472,1755402642946,-293.7439445,0.000206,2]
[379764474,1755402642955,-293.7439445,0.000206,2]
[379764476,1755402642965,-160.7608968,0.000206,2]
[379764478,1755402642974,-426.4,0.00020606,2]
[379764480,1755402642984,-480.0,0.00020627,2]
[379764482,1755402642993,-487.76388501,0.00020627,2]
[379764484,1755402643003,-480.0,0.00020627,2]
[379764486,1755402643012,-480.0,0.00020627,2]
[379764488,1755402643022,-485.77939399,0.00020627,2]
[379764490,1755402643031,-483.55532553,0.00020627,2]
[379764492,1755402643040,-480.0,0.00020627,2]
[379764494,1755402643049,-582.86,0.00020627,2]
[379764496,1755402643059,-480.0,0.00020627,2]
[379764498,1755402643069,-782.52,0.00020627,2]
[379764500,1755402643079,-480.0,0.00020627,2]
[379764502,1755402643087,-480.0,0.00020627,2]
[379764504,1755402643097,-480.0,0.00020627,2]
[379764506,1755402643106,-1336.74,0.00020627,2]
[379764508,1755402643115,-480.0,0.00020627,2]
[379764511,1755402643128,-480.0,0.00020627,2]
[379764513,1755402643138,-163.21651495,0.00020627,2]
[379764514,1755402643147,-214.75,0.00020627,2]
[379764516,1755402643157,-480.0,0.00020628,2]
[379764518,1755402643166,-718.52,0.00020628,2]
[379764520,1755402643175,-3832.03,0.00020628,2]
[379764522,1755402643184,-480.0,0.00020628,2]
[379764524,1755402643194,-480.0,0.00020628,2]
[379764526,1755402643203,-480.0,0.00020628,2]
[379764528,1755402643212,-549.71,0.00020628,2]
[379764530,1755402643221,-173.28,0.00020629,2]
[379764532,1755402643231,-480.0,0.00020629,2]
[379764534,1755402643240,-480.0,0.00020629,2]
[379764536,1755402643251,-164.54016138,0.00020629,2]
[379764538,1755402643261,-480.0,0.00020629,2]
[379764540,1755402643272,-483.37721019,0.00020629,2]
[379764542,1755402643281,-480.0,0.00020629,2]
[379764544,1755402643290,-480.0,0.00020629,2]
[379764546,1755402643300,-480.0,0.00020629,2]
[379764548,1755402643310,-330.0981542,0.00020629,2]
[379764550,1755402643320,-480.0,0.00020629,2]
[379764552,1755402643329,-505.95800811,0.00020629,2]
[379764554,1755402643338,-492.59,0.00020629,2]
[379764556,1755402643349,-330.49228876,0.00020629,2]
[379764559,1755402643360,-480.0,0.00020629,2]
[379764561,1755402643369,-480.0,0.00020629,2]
[379764563,1755402643379,-480.0,0.00020629,2]
[379764568,1755402643391,-480.0,0.00020629,2]
[379764570,1755402643434,-480.0,0.00020629,2]
[379764572,1755402643443,-560.76,0.00020629,2]
[379764574,1755402643452,-480.0,0.00020629,2]
[379764576,1755402643462,-480.0,0.00020629,2]
[379764578,1755402643471,-480.0,0.00020629,2]
[379764580,1755402643480,-480.0,0.00020629,2]
[379764582,1755402643490,-484.11563837,0.00020629,2]
[379764584,1755402643499,-205.01,0.00020629,2]
[379764585,1755402643508,-480.0,0.00020629,2]
[379764586,1755402643518,-1811.52,0.00020629,2]
[379764587,1755402643527,-480.0,0.00020629,2]
[379764588,1755402643537,-400.0,0.00020629,2]
[379764589,1755402643547,-543.98660339,0.00020629,2]
[379764590,1755402643556,-480.0,0.00020629,2]
[379764591,1755402643565,-480.0,0.00020629,2]
[379764592,1755402643575,-484.55179588,0.00020629,2]
[379764593,1755402643585,-484.61641326,0.00020629,2]
[379764594,1755402643595,-480.0,0.00020629,2]
[379764595,1755402643604,-4322.46,0.00020629,2]
[379764596,1755402643615,-484.85699865,0.00020629,2]
[379764597,1755402643624,-480.0,0.0002063,2]
[379764598,1755402643633,-480.0,0.0002063,2]
[379764599,1755402643643,-489.38,0.0002063,2]
[379764600,1755402643652,-480.0,0.0002063,2]
[379764601,1755402643662,-480.0,0.0002063,2]
[379764603,1755402643671,-480.0,0.0002063,2]
[379764604,1755402643681,-583.35646846,0.0002063,2]
[379764605,1755402643690,-480.0,0.0002063,2]
[379764606,1755402643699,-495.19840649,0.0002063,2]
[379764607,1755402643708,-480.0,0.0002063,2]
[379764608,1755402643718,-480.0,0.0002063,2]
[379764609,1755402643727,-171.66553439,0.0002063,2]
[379764610,1755402643736,-480.0,0.0002063,2]
[379764611,1755402643745,-485.57736844,0.0002063,2]
[379764612,1755402643754,-487.30359118,0.0002063,2]
[379764613,1755402643763,-480.0,0.0002063,2]
[379764614,1755402643772,-528.22,0.0002063,2]
[379764615,1755402643781,-650.03,0.0002063,2]
[379764616,1755402643791,-480.0,0.0002063,2]
[379764617,1755402643800,-794.77,0.0002063,2]
[379764618,1755402643809,-484.07982971,0.00020631,2]
[379764619,1755402643818,-480.0,0.00020631,2]
[379764620,1755402643827,-485.07111291,0.00020631,2]
[379764621,1755402643835,-484.61666209,0.00020631,2]
[379764622,1755402643844,-484.78168894,0.00020631,2]
[379764623,1755402643853,-404.97118105,0.00020631,2]
[379764624,1755402643862,-482.95236684,0.00020631,2]
[379764625,1755402643871,-413.86641206,0.00020631,2]
[379764626,1755402643879,-475.0,0.00020631,2]
[379764627,1755402643888,-218.06077773,0.00020631,2]
[379764628,1755402643897,-484.61429397,0.00020631,2]
[379764629,1755402643906,-480.0,0.00020631,2]
[379764630,1755402643915,-483.29717523,0.00020631,2]
[379764631,1755402643924,-151.14904501,0.00020631,2]
[379764632,1755402643933,-480.0,0.00020631,2]
[379764633,1755402643942,-12682.46447135,0.00020648,2]
[379764634,1755402643951,-528.48506731,0.00020648,2]
[379764635,1755402643960,-160.0,0.00020648,2]
[379764636,1755402643969,-843.71309931,0.00020648,2]
[379764637,1755402643978,-462.21132165,0.00020648,2]
[379764638,1755402643987,-160.0,0.00020648,2]
[379764639,1755402643996,-215.71995163,0.00020648,2]
[379764640,1755402644005,-232.1512529,0.00020648,2]
[379764641,1755402644014,-160.0,0.00020648,2]
[379764642,1755402644023,-160.0,0.00020648,2]
[379764643,1755402644033,-160.0,0.00020648,2]
[379764644,1755402644042,-160.0,0.00020648,2]
[379764645,1755402644051,-160.0,0.00020648,2]
[379764646,1755402644060,-160.0,0.00020648,2]
[379764647,1755402644069,-151.0,0.00020648,2]
[379764648,1755402644079,-423.523275,0.00020648,2]
[379764649,1755402644087,-423.523275,0.00020648,2]
[379764650,1755402644096,-151.0,0.00020648,2]
[379764651,1755402644105,-151.0,0.00020648,2]
[379764652,1755402644114,-192.203984,0.00020648,2]
[379764653,1755402644123,-151.0,0.00020648,2]
[379764654,1755402644133,-151.0,0.00020648,2]
[379764655,1755402644142,-151.0,0.00020648,2]
[379764656,1755402644152,-151.0,0.00020648,2]
[379764657,1755402644161,-151.0,0.00020648,2]
[379764658,1755402644170,-151.0,0.00020648,2]
[379764659,1755402644180,-151.0,0.00020648,2]
[379764660,1755402644189,-151.0,0.00020648,2]
[379764661,1755402644199,-225.499689,0.00020648,2]
[379764662,1755402644208,-225.499689,0.00020648,2]
[379764663,1755402644217,-151.0,0.00020648,2]
[379764664,1755402644226,-151.0,0.00020648,2]
[379764665,1755402644235,-417.15472785,0.00020648,2]
[379764666,1755402644245,-168.0,0.0002066,2]
[379764667,1755402644254,-160.0,0.00020687,3]
[379764668,1755402644263,-186.636562,0.00020698,20]
[379764669,1755402644272,-420.0,0.00020699,2]
[379764670,1755402644281,-293.7439445,0.000207,2]
[379764671,1755402644290,-160.7608968,0.000207,2]
[379764672,1755402644299,-151.0,0.00020734,2]
[379764674,1755402644308,-151.0,0.00020734,2]
[379764676,1755402644317,-500.0,0.00020734,2]
[379764678,1755402644326,-151.0,0.00020734,2]
[379764680,1755402644335,-151.0,0.00020734,2]
[379764682,1755402644344,-151.0,0.00020734,2]
[379764684,1755402644358,-198.87315726,0.00020734,2]
[379764686,1755402644367,-185.23181877,0.00020734,2]
[379764688,1755402644376,-151.0,0.00020734,2]
[379764690,1755402644386,-151.0,0.00020734,2]
[379764692,1755402644395,-1203.0,0.00020734,2]
[379764694,1755402644404,-552.75285055,0.00020734,2]
[379764696,1755402644414,-151.0,0.00020734,2]
[379764698,1755402644423,-151.0,0.00020734,2]
[379764700,1755402644437,-151.0,0.00020734,2]
[379764702,1755402644448,-175.90280181,0.00020734,2]
[379764704,1755402644457,-154.645161,0.00020734,2]
[379764706,1755402644466,-151.0,0.00020734,2]
[379764708,1755402644475,-152.93987,0.00020734,2]
[379764710,1755402644484,-151.0,0.00020734,2]
[379764711,1755402644493,-151.0,0.00020734,2]
[379764713,1755402644504,-151.0,0.00020734,2]
[379764715,1755402644513,-426.4,0.0002075,2]
[379764717,1755402644523,-551.0,0.0002076,2]
[379764719,1755402644532,-200.0,0.00020763,20]
[379764721,1755402644541,-200.0,0.00020763,20]
[379764723,1755402644551,-200.0,0.00020763,20]
[379764725,1755402644560,-200.0,0.00020763,20]
[379764727,1755402644569,-200.0,0.00020763,20]
[379764729,1755402644579,-200.0,0.00020763,20]
[379764731,1755402644589,-200.0,0.00020763,20]
[379764733,1755402644598,-200.0,0.00020763,20]
[379764735,1755402644607,-200.0,0.00020763,20]
[379764737,1755402644617,-200.0,0.00020763,20]
[379764739,1755402644626,-600.0,0.00020764,20]
[379764741,1755402644635,-551.0,0.00020799,2]
[379764743,1755402644646,-151.0,0.00020799,2]
[379764745,1755402644655,-151.0,0.00020799,2]
[379764747,1755402644664,-151.0,0.00020799,2]
[379764749,1755402644673,-151.0,0.00020799,2]
[379764751,1755402644682,-151.125281,0.00020799,2]
[379764753,1755402644691,-359.676856,0.00020799,2]
[379764755,1755402644700,-359.676856,0.00020799,2]
[379764757,1755402644709,-247.774366,0.00020799,2]